[Event "Swedish Chess Championship 2019: Veteran-SM 65+"]
[Site "Stiga Sports Arena, Arenatorget 1, Eskilstuna, Sweden"]
[Date "2019.07.12"]
[Round "7.2"]
[White "Amnell, Mats"]
[Black "Moborn, Anders"]
[Result "1/2-1/2"]
[TimeControl "90 minutes for 40 moves + 30 minutes for the rest of the game + 30 seconds per move from move one"]
[WhiteFideId "1717316"]
[BlackFideId "1706349"]
[WhiteElo "1770"]
[BlackElo "2034"]

1. e4 {[%clk 01:30:11]} {[%emt 00:02:03]} e6 {[%clk 01:30:36]} 2. d4 {[%clk
01:30:22]} {[%emt 00:00:03]} d5 {[%clk 01:30:47]} 3. Nd2 {[%clk 01:30:43]} Nf6
{[%clk 01:30:59]} {[%emt 00:00:12]} 4. Bd3 {[%clk 01:30:54]} {[%emt 00:00:18]}
c5 {[%clk 01:30:51]} {[%emt 00:00:39]} 5. c3 {[%clk 01:30:54]} {[%emt
00:00:30]} Nc6 {[%clk 01:30:38]} {[%emt 00:00:42]} 6. Ngf3 {[%clk 01:31:12]}
{[%emt 00:00:12]} dxe4 {[%clk 01:24:33]} {[%emt 00:06:36]} 7. Nxe4 {[%clk
01:31:29]} {[%emt 00:00:13]} cxd4 {[%clk 01:23:59]} {[%emt 00:01:04]} 8. cxd4
{[%clk 01:31:50]} {[%emt 00:00:09]} Bb4+ {[%clk 01:23:06]} {[%emt 00:01:23]} 9.
Nc3 {[%clk 01:32:08]} {[%emt 00:00:11]} O-O {[%clk 01:18:13]} {[%emt 00:05:24]}
10. O-O {[%clk 01:32:18]} {[%emt 00:00:19]} h6 {[%clk 01:15:04]} {[%emt
00:03:40]} 11. a3 {[%clk 01:29:27]} {[%emt 00:03:21]} Be7 {[%clk 01:12:35]}
{[%emt 00:02:59]} 12. Re1 {[%clk 01:28:25]} {[%emt 00:01:31]} a6 {[%clk
01:10:41]} {[%emt 00:02:25]} 13. Bc2 {[%clk 01:19:06]} {[%emt 00:09:47]} Re8
{[%clk 01:02:32]} {[%emt 00:08:41]} 1/2-1/2

[Event "Swedish Chess Championship 2019: Veteran-SM 65+"]
[Site "Stiga Sports Arena, Arenatorget 1, Eskilstuna, Sweden"]
[Date "2019.07.12"]
[Round "7.3"]
[White "Svensson, Hakan"]
[Black "Gajic, Zoran"]
[Result "0-1"]
[TimeControl "90 minutes for 40 moves + 30 minutes for the rest of the game + 30 seconds per move from move one"]
[WhiteFideId "1714201"]
[BlackFideId "1718304"]
[WhiteElo "2056"]
[BlackElo "1936"]

1. d4 {[%clk 01:30:55]} {[%emt 00:00:06]} Nf6 {[%clk 01:30:49]} {[%emt
00:00:32]} 2. Bg5 {[%clk 01:31:17]} {[%emt 00:00:25]} d5 {[%clk 01:31:14]}
{[%emt 00:00:55]} 3. e3 {[%clk 01:29:52]} {[%emt 00:00:22]} e6 {[%clk
01:29:41]} {[%emt 00:02:03]} 4. Nf3 {[%clk 01:30:08]} {[%emt 00:00:13]} Be7
{[%clk 01:29:56]} {[%emt 00:00:17]} 5. Nbd2 {[%clk 01:30:27]} {[%emt 00:00:10]}
b6 {[%clk 01:28:26]} {[%emt 00:02:01]} 6. Bd3 {[%clk 01:30:36]} {[%emt
00:00:19]} Bb7 {[%clk 01:27:18]} {[%emt 00:01:40]} 7. Ne5 {[%clk 01:28:53]}
{[%emt 00:02:12]} Nfd7 {[%clk 01:26:03]} {[%emt 00:01:46]} 8. Bxe7 {[%clk
01:28:20]} {[%emt 00:01:02]} Qxe7 {[%clk 01:26:22]} {[%emt 00:00:12]} 9. f4
{[%clk 01:28:28]} {[%emt 00:00:20]} Nxe5 {[%clk 01:16:54]} {[%emt 00:10:00]} 10.
fxe5 {[%clk 01:26:39]} {[%emt 00:02:19]} Ba6 {[%clk 01:17:19]} {[%emt
00:00:05]} 11. Bxa6 {[%clk 01:19:59]} {[%emt 00:07:10]} Nxa6 {[%clk 01:17:43]}
{[%emt 00:00:05]} 12. Qe2 {[%clk 01:19:57]} {[%emt 00:00:32]} Nb4 {[%clk
01:07:53]} {[%emt 00:10:20]} 13. Nf3 {[%clk 01:14:47]} {[%emt 00:05:39]} c5
{[%clk 01:03:41]} {[%emt 00:04:43]} 14. c3 {[%clk 01:12:50]} {[%emt 00:02:26]}
Nc6 {[%clk 01:04:05]} {[%emt 00:00:08]} 15. O-O {[%clk 01:09:06]} {[%emt
00:04:13]} O-O {[%clk 01:03:47]} {[%emt 00:00:49]} 16. e4 {[%clk 01:03:47]}
{[%emt 00:05:47]} Rfd8 {[%clk 00:53:38]} {[%emt 00:10:41]} 17. Rad1 {[%clk
00:59:14]} {[%emt 00:05:01]} cxd4 {[%clk 00:44:59]} {[%emt 00:09:11]} 18. cxd4
{[%clk 00:56:36]} {[%emt 00:03:08]} Rac8 {[%clk 00:39:10]} {[%emt 00:06:19]} 19.
a3 {[%clk 00:44:07]} {[%emt 00:12:58]} Na5 {[%clk 00:32:18]} {[%emt 00:07:22]}
20. exd5 {[%clk 00:42:16]} {[%emt 00:02:21]} Rxd5 {[%clk 00:27:32]} {[%emt
00:05:16]} 21. Rc1 {[%clk 00:26:38]} {[%emt 00:16:07]} Rdd8 {[%clk 00:16:46]}
{[%emt 00:11:16]} 22. Qb5 {[%clk 00:26:03]} {[%emt 00:01:05]} g5 {[%clk
00:11:13]} {[%emt 00:06:04]} 23. Qd3 {[%clk 00:20:29]} {[%emt 00:06:03]} g4
{[%clk 00:04:46]} {[%emt 00:06:57]} 24. Nd2 {[%clk 00:18:29]} {[%emt 00:02:30]}
Nc6 {[%clk 00:04:44]} {[%emt 00:00:33]} 25. Rxc6 {[%clk 00:13:13]} {[%emt
00:05:46]} Rxc6 {[%clk 00:04:38]} {[%emt 00:00:35]} 26. Ne4 {[%clk 00:13:08]}
{[%emt 00:00:34]} Qh4 {[%clk 00:04:12]} {[%emt 00:00:57]} 27. g3 {[%clk
00:10:01]} {[%emt 00:03:36]} Qh6 {[%clk 00:03:18]} {[%emt 00:01:24]} 28. Nf6+
{[%clk 00:08:24]} {[%emt 00:02:07]} Kg7 {[%clk 00:03:45]} {[%emt 00:00:05]} 29.
Nxg4 {[%clk 00:01:44]} {[%emt 00:07:10]} Qg6 {[%clk 00:03:42]} {[%emt
00:00:32]} 30. Qf3 {[%clk 00:02:10]} {[%emt 00:00:04]} Rdc8 {[%clk 00:02:43]}
{[%emt 00:01:29]} 31. h4 {[%clk 00:02:08]} {[%emt 00:00:32]} Qf5 {[%clk
00:01:49]} {[%emt 00:01:24]} 32. Qd1 {[%clk 00:01:19]} {[%emt 00:01:18]} Qe4
{[%clk 00:01:33]} {[%emt 00:00:46]} 33. Rxf7+ {[%clk 00:00:45]} {[%emt
00:01:05]} Kxf7 {[%clk 00:01:49]} {[%emt 00:00:15]} 34. Qf1+ {[%clk 00:01:05]}
{[%emt 00:00:09]} Qf5 {[%clk 00:00:55]} {[%emt 00:01:25]} 35. Nh6+ {[%clk
00:01:17]} {[%emt 00:00:18]} Kf8 {[%clk 00:01:05]} {[%emt 00:00:20]} 36. Nxf5
{[%clk 00:01:41]} {[%emt 00:00:07]} Rc1 {[%clk 00:01:32]} {[%emt 00:00:03]} 37.
Nd6+ {[%clk 00:01:55]} {[%emt 00:00:16]} Rxf1+ {[%clk 00:01:58]} {[%emt
00:00:04]} 38. Kxf1 {[%clk 00:02:22]} {[%emt 00:00:03]} Rc1+ {[%clk 00:02:05]}
{[%emt 00:00:23]} 39. Kf2 {[%clk 00:02:29]} {[%emt 00:00:23]} Rc2+ {[%clk
00:02:29]} {[%emt 00:00:07]} 40. Kf3 {[%clk 00:02:53]} {[%emt 00:00:06]} Rxb2
{[%clk 00:02:48]} {[%emt 00:00:11]} 41. Kf4 {[%clk 00:01:48]} {[%emt 00:01:34]}
Rb3 {[%clk 00:02:19]} {[%emt 00:00:59]} 42. g4 {[%clk 00:30:03]} {[%emt
00:02:15]} h6 {[%clk 00:31:44]} {[%emt 00:01:05]} 43. g5 {[%clk 00:30:22]}
{[%emt 00:00:11]} hxg5+ {[%clk 00:30:18]} {[%emt 00:01:56]} 44. Kxg5 {[%clk
00:28:19]} {[%emt 00:02:40]} Rxa3 {[%clk 00:22:00]} {[%emt 00:08:41]} 45. Kf6
{[%clk 00:28:43]} {[%emt 00:00:05]} Rh3 {[%clk 00:22:21]} {[%emt 00:00:09]} 46.
Kxe6 {[%clk 00:25:54]} {[%emt 00:03:19]} Rxh4 {[%clk 00:22:28]} {[%emt
00:00:24]} 47. Nf5 {[%clk 00:26:07]} {[%emt 00:00:15]} Rh7 {[%clk 00:15:20]}
{[%emt 00:07:38]} 48. d5 {[%clk 00:25:19]} {[%emt 00:01:19]} a5 {[%clk
00:15:19]} {[%emt 00:00:32]} 49. Kf6 {[%clk 00:23:05]} {[%emt 00:02:43]} Rf7+
{[%clk 00:10:48]} {[%emt 00:05:01]} 50. Kg6 {[%clk 00:21:12]} {[%emt 00:02:21]}
Rd7 {[%clk 00:05:35]} {[%emt 00:05:44]} 51. d6 {[%clk 00:17:14]} {[%emt
00:04:26]} a4 {[%clk 00:01:25]} {[%emt 00:04:41]} 52. Kf6 {[%clk 00:11:13]}
{[%emt 00:06:31]} Rf7+ {[%clk 00:01:24]} {[%emt 00:00:31]} 53. Ke6 {[%clk
00:11:12]} {[%emt 00:00:31]} Ke8 {[%clk 00:01:06]} {[%emt 00:00:48]} 54. Nd4
{[%clk 00:10:58]} {[%emt 00:00:44]} a3 {[%clk 00:00:53]} {[%emt 00:00:44]} 55.
Kd5 {[%clk 00:10:39]} {[%emt 00:00:46]} a2 {[%clk 00:00:59]} {[%emt 00:00:25]}
56. Nb3 {[%clk 00:07:33]} {[%emt 00:03:37]} Rf3 {[%clk 00:00:49]} {[%emt
00:00:40]} 57. Na1 {[%clk 00:07:47]} {[%emt 00:00:16]} Rd3+ {[%clk 00:00:43]}
{[%emt 00:00:35]} 58. Kc6 {[%clk 00:07:52]} {[%emt 00:00:26]} Rc3+ {[%clk
00:00:59]} {[%emt 00:00:13]} 59. Kd5 {[%clk 00:08:08]} {[%emt 00:00:14]} Rc1
{[%clk 00:01:10]} {[%emt 00:00:19]} 0-1

[Event "Swedish Chess Championship 2019: Veteran-SM 65+"]
[Site "Stiga Sports Arena, Arenatorget 1, Eskilstuna, Sweden"]
[Date "2019.07.12"]
[Round "7.4"]
[White "Wedin, Svante"]
[Black "Gromark, Jonas"]
[Result "1-0"]
[TimeControl "90 minutes for 40 moves + 30 minutes for the rest of the game + 30 seconds per move from move one"]
[WhiteFideId "1711989"]
[BlackFideId "137122733"]
[WhiteElo "2003"]
[BlackElo "1833"]

1. e4 {[%clk 01:30:57]} {[%emt 00:00:05]} e6 {[%clk 01:30:32]} {[%emt
00:01:55]} 2. d4 {[%clk 01:31:18]} d5 {[%clk 01:30:52]} 3. Nd2 {[%clk
01:31:42]} a6 {[%clk 01:30:31]} {[%emt 00:00:03]} 4. Bd3 {[%clk 01:27:18]}
{[%emt 00:04:36]} c5 {[%clk 01:30:06]} {[%emt 00:00:55]} 5. exd5 {[%clk
01:23:52]} {[%emt 00:03:57]} exd5 {[%clk 01:30:20]} {[%emt 00:00:16]} 6. dxc5
{[%clk 01:23:14]} {[%emt 00:01:08]} Bxc5 {[%clk 01:30:35]} {[%emt 00:00:15]} 7.
Ngf3 {[%clk 01:23:25]} {[%emt 00:00:19]} Qe7+ {[%clk 01:26:25]} {[%emt
00:04:40]} 8. Qe2 {[%clk 01:23:36]} {[%emt 00:00:18]} Nc6 {[%clk 01:26:01]}
{[%emt 00:00:55]} 9. c3 {[%clk 01:23:16]} {[%emt 00:00:50]} Qxe2+ {[%clk
01:21:48]} {[%emt 00:04:43]} 10. Bxe2 {[%clk 01:23:34]} {[%emt 00:00:11]} Nf6
{[%clk 01:21:10]} {[%emt 00:01:09]} 11. O-O {[%clk 01:23:17]} {[%emt 00:00:47]}
O-O {[%clk 01:16:54]} {[%emt 00:04:46]} 12. Nb3 {[%clk 01:21:06]} {[%emt
00:02:41]} Bb6 {[%clk 01:16:00]} {[%emt 00:01:23]} 13. Bg5 {[%clk 01:20:19]}
{[%emt 00:01:17]} Ne4 {[%clk 01:15:22]} {[%emt 00:01:09]} 14. Bf4 {[%clk
01:16:09]} {[%emt 00:04:40]} Re8 {[%clk 01:13:47]} {[%emt 00:02:03]} 15. Bd3
{[%clk 01:13:54]} {[%emt 00:02:46]} Bg4 {[%clk 01:10:35]} {[%emt 00:03:42]} 16.
Nfd4 {[%clk 01:10:06]} {[%emt 00:04:18]} Bh5 {[%clk 01:05:20]} {[%emt
00:05:45]} 17. Rae1 {[%clk 00:59:31]} {[%emt 00:11:05]} Bg6 {[%clk 01:03:01]}
{[%emt 00:02:49]} 18. Bb1 {[%clk 00:54:45]} {[%emt 00:05:16]} Nf6 {[%clk
00:54:00]} {[%emt 00:09:31]} 19. Be3 {[%clk 00:46:23]} {[%emt 00:08:52]} Bxb1
{[%clk 00:50:56]} {[%emt 00:03:34]} 20. Rxb1 {[%clk 00:46:52]} Ng4 {[%clk
00:45:56]} {[%emt 00:05:29]} 21. Rfe1 {[%clk 00:46:13]} {[%emt 00:01:09]} Nxe3
{[%clk 00:45:28]} {[%emt 00:00:59]} 22. fxe3 {[%clk 00:42:57]} {[%emt
00:03:46]} Ne5 {[%clk 00:44:38]} {[%emt 00:01:19]} 23. Re2 {[%clk 00:39:07]}
{[%emt 00:04:20]} g6 {[%clk 00:37:34]} {[%emt 00:07:34]} 24. h3 {[%clk
00:37:30]} {[%emt 00:02:08]} Nc4 {[%clk 00:36:26]} {[%emt 00:01:38]} 25. Kf2
{[%clk 00:37:13]} {[%emt 00:00:47]} Re5 {[%clk 00:33:40]} {[%emt 00:03:16]} 26.
Nd2 {[%clk 00:34:51]} {[%emt 00:02:51]} Nxd2 {[%clk 00:32:01]} {[%emt
00:02:09]} 27. Rxd2 {[%clk 00:35:18]} {[%emt 00:00:04]} Rae8 {[%clk 00:31:29]}
{[%emt 00:01:02]} 28. Re1 {[%clk 00:35:33]} {[%emt 00:00:14]} h5 {[%clk
00:29:01]} {[%emt 00:02:58]} 29. g3 {[%clk 00:31:51]} {[%emt 00:04:13]} h4
{[%clk 00:27:34]} {[%emt 00:01:57]} 30. g4 {[%clk 00:31:45]} {[%emt 00:00:35]}
Rd8 {[%clk 00:18:44]} {[%emt 00:09:20]} 31. Nf3 {[%clk 00:30:13]} {[%emt
00:02:02]} Re4 {[%clk 00:17:26]} {[%emt 00:01:48]} 32. Nxh4 {[%clk 00:28:43]}
{[%emt 00:02:00]} f5 {[%clk 00:15:59]} {[%emt 00:01:57]} 33. Nxg6 {[%clk
00:22:05]} {[%emt 00:07:08]} f4 {[%clk 00:15:29]} {[%emt 00:01:01]} 34. Kf3
{[%clk 00:21:33]} {[%emt 00:01:02]} fxe3 {[%clk 00:14:49]} {[%emt 00:01:10]} 35.
Rxd5 {[%clk 00:18:29]} {[%emt 00:03:34]} Rde8 {[%clk 00:13:07]} {[%emt
00:02:11]} 36. Re2 {[%clk 00:16:34]} {[%emt 00:02:25]} R4e6 {[%clk 00:11:53]}
{[%emt 00:01:45]} 37. Nh4 {[%clk 00:15:46]} {[%emt 00:01:18]} Rh6 {[%clk
00:10:08]} {[%emt 00:02:15]} 38. Rh5 {[%clk 00:13:47]} {[%emt 00:02:28]} Rf8+
{[%clk 00:09:17]} {[%emt 00:01:21]} 39. Kg2 {[%clk 00:13:23]} {[%emt 00:00:54]}
Rd6 {[%clk 00:07:19]} {[%emt 00:02:28]} 40. Rg5+ {[%clk 00:12:52]} {[%emt
00:01:01]} Kh7 {[%clk 00:06:41]} {[%emt 00:01:09]} 41. Nf5 {[%clk 00:12:27]}
{[%emt 00:00:55]} Rd2 {[%clk 00:23:27]} {[%emt 00:13:44]} 42. Kf3 {[%clk
00:41:10]} {[%emt 00:01:47]} Rd1 {[%clk 00:17:51]} {[%emt 00:06:06]} 43. Rg7+
{[%clk 00:36:17]} {[%emt 00:05:23]} Kh8 {[%clk 00:18:04]} {[%emt 00:00:16]} 44.
Rxb7 {[%clk 00:36:44]} {[%emt 00:00:03]} Rf6 {[%clk 00:15:18]} {[%emt
00:03:16]} 45. Kg2 {[%clk 00:35:32]} {[%emt 00:01:42]} Re6 {[%clk 00:06:57]}
{[%emt 00:08:50]} 46. g5 {[%clk 00:26:18]} {[%emt 00:09:45]} Bc5 {[%clk
00:05:19]} {[%emt 00:02:09]} 47. h4 {[%clk 00:18:56]} {[%emt 00:07:51]} Rd2
{[%clk 00:04:11]} {[%emt 00:01:38]} 48. Kf3 {[%clk 00:19:06]} {[%emt 00:00:20]}
Rxe2 {[%clk 00:03:22]} {[%emt 00:01:20]} 49. Kxe2 {[%clk 00:19:34]} {[%emt
00:00:02]} Re5 {[%clk 00:03:06]} {[%emt 00:00:46]} 50. Nh6 {[%clk 00:18:09]}
{[%emt 00:01:54]} Rd5 {[%clk 00:03:01]} {[%emt 00:00:35]} 51. g6 {[%clk
00:17:56]} {[%emt 00:00:43]} Rd2+ {[%clk 00:03:07]} {[%emt 00:00:24]} 52. Ke1
{[%clk 00:18:14]} 1-0

[Event "Swedish Chess Championship 2019: Veteran-SM 65+"]
[Site "Stiga Sports Arena, Arenatorget 1, Eskilstuna, Sweden"]
[Date "2019.07.13"]
[Round "8.1"]
[White "Andersson, Kjell-Ake"]
[Black "Moborn, Anders"]
[Result "0-1"]
[TimeControl "90 minutes for 40 moves + 30 minutes for the rest of the game + 30 seconds per move from move one"]
[WhiteFideId "1713825"]
[BlackFideId "1706349"]
[WhiteElo "1859"]
[BlackElo "2034"]

1. Nf3 {[%clk 01:30:46]} {[%emt 00:00:21]} Nf6 {[%clk 01:30:40]} {[%emt
00:00:42]} 2. c4 {[%clk 01:30:54]} {[%emt 00:00:57]} c6 {[%clk 01:30:19]}
{[%emt 00:02:51]} 3. b3 {[%clk 01:29:20]} {[%emt 00:07:10]} d5 {[%clk
01:28:53]} {[%emt 00:06:56]} 4. Bb2 {[%clk 01:29:39]} {[%emt 00:00:38]} Bf5
{[%clk 01:26:51]} {[%emt 00:06:16]} 5. d3 {[%clk 01:28:09]} e6 {[%clk
01:23:09]} 6. g3 {[%clk 01:27:54]} Qb6 {[%clk 01:17:36]} 7. Nbd2 {[%clk
01:24:38]} Nbd7 {[%clk 01:09:59]} {[%emt 00:07:32]} 8. Bg2 {[%clk 01:23:38]}
{[%emt 00:01:27]} Bc5 {[%clk 01:05:08]} {[%emt 00:05:23]} 9. O-O {[%clk
01:18:39]} {[%emt 00:05:26]} O-O {[%clk 01:01:34]} {[%emt 00:04:07]} 10. h3
{[%clk 01:11:54]} {[%emt 00:07:12]} h6 {[%clk 00:59:44]} {[%emt 00:02:23]} 11.
Qe1 {[%clk 01:03:43]} {[%emt 00:08:39]} Rfe8 {[%clk 00:53:21]} {[%emt
00:06:54]} 12. Kh2 {[%clk 00:50:24]} {[%emt 00:13:45]} a5 {[%clk 00:45:31]}
{[%emt 00:08:25]} 13. a3 {[%clk 00:47:45]} {[%emt 00:03:07]} d4 {[%clk
00:40:52]} {[%emt 00:05:10]} 14. Qc1 {[%clk 00:34:23]} {[%emt 00:13:52]} e5
{[%clk 00:38:40]} {[%emt 00:02:43]} 15. Qc2 {[%clk 00:33:04]} {[%emt 00:01:46]}
Bh7 {[%clk 00:33:37]} {[%emt 00:05:35]} 16. Rae1 {[%clk 00:27:25]} {[%emt
00:06:07]} Bf8 {[%clk 00:25:06]} {[%emt 00:09:03]} 17. Rg1 {[%clk 00:20:18]}
{[%emt 00:07:35]} Bc5 {[%clk 00:20:55]} {[%emt 00:04:43]} 18. Rgf1 {[%clk
00:19:38]} {[%emt 00:01:09]} Rad8 {[%clk 00:19:41]} {[%emt 00:01:45]} 19. Ng1
{[%clk 00:12:22]} {[%emt 00:07:44]} Bf8 {[%clk 00:14:35]} {[%emt 00:05:38]} 20.
Ngf3 {[%clk 00:10:41]} {[%emt 00:02:09]} Nc5 {[%clk 00:11:20]} {[%emt
00:03:40]} 21. b4 {[%clk 00:08:06]} {[%emt 00:03:12]} axb4 {[%clk 00:10:46]}
{[%emt 00:01:03]} 22. axb4 {[%clk 00:08:29]} {[%emt 00:00:07]} Qxb4 {[%clk
00:09:48]} {[%emt 00:01:29]} 23. Rb1 {[%clk 00:08:52]} {[%emt 00:00:07]} Qa5
{[%clk 00:09:32]} {[%emt 00:00:46]} 24. Ra1 {[%clk 00:08:40]} {[%emt 00:00:42]}
Qc7 {[%clk 00:09:07]} {[%emt 00:00:54]} 25. Nb3 {[%clk 00:06:09]} {[%emt
00:03:01]} e4 {[%clk 00:07:21]} {[%emt 00:02:17]} 26. dxe4 {[%clk 00:04:43]}
{[%emt 00:01:56]} Ncxe4 {[%clk 00:05:06]} {[%emt 00:02:45]} 27. Qc1 {[%clk
00:04:08]} {[%emt 00:01:01]} c5 {[%clk 00:05:16]} {[%emt 00:00:23]} 28. Ra7
{[%clk 00:03:56]} {[%emt 00:00:42]} Bd6 {[%clk 00:04:03]} {[%emt 00:01:44]} 29.
Kg1 {[%clk 00:02:20]} {[%emt 00:02:05]} Qb6 {[%clk 00:02:47]} {[%emt 00:01:47]}
30. Ra3 {[%clk 00:02:41]} {[%emt 00:00:08]} Ra8 {[%clk 00:03:03]} {[%emt
00:00:15]} 31. Qa1 {[%clk 00:02:35]} {[%emt 00:00:35]} Rxa3 {[%clk 00:03:11]}
{[%emt 00:00:24]} 32. Qxa3 {[%clk 00:02:39]} {[%emt 00:00:24]} Qc7 {[%clk
00:03:23]} {[%emt 00:00:19]} 33. Nc1 {[%clk 00:02:04]} {[%emt 00:01:04]} b6
{[%clk 00:02:52]} {[%emt 00:01:03]} 34. Qa4 {[%clk 00:01:44]} {[%emt 00:00:50]}
Qb7 {[%clk 00:02:06]} {[%emt 00:01:16]} 35. Nd2 {[%clk 00:01:49]} {[%emt
00:00:24]} Ra8 {[%clk 00:01:40]} {[%emt 00:00:56]} 36. Qd1 {[%clk 00:01:09]}
{[%emt 00:01:09]} Ra7 {[%clk 00:01:51]} {[%emt 00:00:20]} 37. Nd3 {[%clk
00:00:54]} {[%emt 00:00:45]} Qc7 {[%clk 00:02:03]} {[%emt 00:00:14]} 38. Nxe4
{[%clk 00:00:57]} {[%emt 00:00:31]} Nxe4 {[%clk 00:02:17]} {[%emt 00:00:17]} 39.
Qc1 {[%clk 00:00:38]} {[%emt 00:00:48]} Qe7 {[%clk 00:01:38]} {[%emt 00:01:10]}
40. Qc2 {[%clk 00:00:31]} {[%emt 00:00:37]} Qe8 {[%clk 00:01:25]} {[%emt
00:00:42]} 41. Qb3 {[%clk 00:28:28]} {[%emt 00:02:33]} Bc7 {[%clk 00:29:41]}
{[%emt 00:02:14]} 42. Re1 {[%clk 00:27:51]} {[%emt 00:01:05]} Qa4 {[%clk
00:23:22]} {[%emt 00:06:51]} 43. Qxa4 {[%clk 00:26:26]} {[%emt 00:01:55]} Rxa4
{[%clk 00:23:33]} {[%emt 00:00:19]} 44. Ra1 {[%clk 00:25:28]} {[%emt 00:01:27]}
Rxa1+ {[%clk 00:23:08]} {[%emt 00:00:56]} 45. Bxa1 {[%clk 00:25:46]} {[%emt
00:00:10]} Nd2 {[%clk 00:17:28]} {[%emt 00:06:11]} 46. Bd5 {[%clk 00:24:36]}
{[%emt 00:01:40]} Be4 {[%clk 00:17:33]} {[%emt 00:00:25]} 47. Bb2 {[%clk
00:23:03]} {[%emt 00:02:02]} Bxd5 {[%clk 00:16:43]} {[%emt 00:01:21]} 48. cxd5
{[%clk 00:23:09]} {[%emt 00:00:24]} c4 {[%clk 00:12:32]} {[%emt 00:04:42]} 49.
Ne1 {[%clk 00:22:19]} {[%emt 00:01:18]} c3 {[%clk 00:11:05]} {[%emt 00:01:59]}
50. Ba3 {[%clk 00:22:30]} {[%emt 00:00:18]} Nc4 {[%clk 00:11:14]} {[%emt
00:00:21]} 51. Bb4 {[%clk 00:20:48]} {[%emt 00:02:12]} Bd6 {[%clk 00:10:00]}
{[%emt 00:01:44]} 52. Nc2 {[%clk 00:21:11]} {[%emt 00:00:06]} Bxb4 {[%clk
00:08:08]} {[%emt 00:02:23]} 53. Nxb4 {[%clk 00:21:32]} {[%emt 00:00:08]} Na3
{[%clk 00:08:15]} {[%emt 00:00:25]} 54. d6 {[%clk 00:21:57]} {[%emt 00:00:04]}
Kf8 {[%clk 00:08:33]} {[%emt 00:00:12]} 0-1

[Event "Swedish Chess Championship 2019: Veteran-SM 65+"]
[Site "Stiga Sports Arena, Arenatorget 1, Eskilstuna, Sweden"]
[Date "2019.07.13"]
[Round "8.2"]
[White "Adolfsson, Kjell"]
[Black "Svensson, Hakan"]
[Result "1/2-1/2"]
[TimeControl "90 minutes for 40 moves + 30 minutes for the rest of the game + 30 seconds per move from move one"]
[WhiteFideId "1714961"]
[BlackFideId "1714201"]
[WhiteElo "1895"]
[BlackElo "2056"]

1. Nc3 {[%clk 01:30:42]} {[%emt 00:00:32]} d5 {[%clk 01:30:18]} {[%emt
00:01:54]} 2. e4 {[%clk 01:30:17]} {[%emt 00:03:03]} dxe4 {[%clk 01:30:40]}
{[%emt 00:00:26]} 3. Nxe4 {[%clk 01:30:38]} {[%emt 00:00:30]} Qd5 {[%clk
01:31:01]} {[%emt 00:00:26]} 4. Qf3 {[%clk 01:30:19]} {[%emt 00:02:55]} Nc6
{[%clk 01:30:58]} {[%emt 00:02:05]} 5. Nc3 {[%clk 01:26:01]} {[%emt 00:13:48]}
Qe5+ {[%clk 01:30:06]} 6. Qe3 {[%clk 01:24:44]} Qxe3+ {[%clk 01:30:23]} 7. fxe3
{[%clk 01:24:58]} Bf5 {[%clk 01:30:09]} 8. d3 {[%clk 01:22:45]} Nb4 {[%clk
01:23:54]} 9. Kd2 {[%clk 01:20:47]} e5 {[%clk 01:21:46]} {[%emt 00:01:41]} 10.
a3 {[%clk 01:20:58]} {[%emt 00:00:20]} Nc6 {[%clk 01:21:58]} {[%emt 00:00:19]}
11. b4 {[%clk 01:20:58]} {[%emt 00:00:28]} O-O-O {[%clk 01:19:09]} {[%emt
00:03:20]} 12. Bb2 {[%clk 01:14:08]} {[%emt 00:07:20]} Nf6 {[%clk 01:18:53]}
{[%emt 00:00:46]} 13. Be2 {[%clk 01:12:59]} {[%emt 00:01:38]} Kb8 {[%clk
01:16:37]} {[%emt 00:02:46]} 14. Na4 {[%clk 01:03:47]} {[%emt 00:09:42]} Nd7
{[%clk 01:13:22]} {[%emt 00:03:45]} 15. Nc3 {[%clk 01:02:51]} {[%emt 00:01:26]}
Nf6 {[%clk 01:13:15]} {[%emt 00:00:37]} 16. Na4 {[%clk 01:01:36]} {[%emt
00:01:45]} Nd7 {[%clk 01:13:25]} {[%emt 00:00:21]} 1/2-1/2